fUSD/lending_fUSD_20240331
["ID","MTS","AMOUNT","RATE_DAILY","PERIOD"]
[321100874,1711894288667,-1791.54,0.00060273,120]
[321100875,1711894288676,-500.23,0.00060273,120]
[321100876,1711894288685,-828.12,0.00060273,120]
[321100877,1711894288694,-534.14,0.00060273,120]
[321100878,1711894288704,-7754.49,0.00060273,120]
[321100879,1711894288713,-513.82,0.00060273,120]
[321100880,1711894288722,-2108.77,0.00060273,120]
[321100881,1711894288732,-2518.23,0.00060273,120]
[321100882,1711894288741,-2060.41,0.00060273,120]
[321100883,1711894288751,-500.0,0.00060273,120]
[321100884,1711894288760,-500.0,0.00060273,120]
[321100885,1711894288770,-507.06,0.00060273,120]
[321100886,1711894288779,-501.29,0.00060273,120]
[321100887,1711894288788,-9968.34,0.00060273,120]
[321100888,1711894288798,-3471.43,0.00060273,120]
[321100889,1711894288808,-500.0,0.00060273,120]
[321100890,1711894288817,-2500.0,0.000603,120]
[321100891,1711894288827,-999.94,0.000604,120]
[321100892,1711894288837,-664.08,0.00060547,120]
[321100893,1711894288846,-2110.47,0.00060547,120]
[321100894,1711894288855,-9971.6,0.00060547,120]
[321100895,1711894288865,-406.5,0.00060547,120]
[321100896,1711894288875,-6781.1,0.00060547,120]
[321100897,1711894288884,-500.0,0.00060547,120]
[321100898,1711894288893,-1467.87,0.00060547,120]
[321100899,1711894288903,-1113.81,0.00060547,120]
[321100900,1711894288912,-11137.41,0.00060547,120]
[321100901,1711894288922,-914.36,0.00060547,120]
[321100902,1711894288931,-786.86,0.00060547,120]
[321100903,1711894288940,-938.23,0.00060547,120]
[321100904,1711894288950,-1333.54,0.00060547,120]
[321100905,1711894288958,-1958.97,0.00060547,21]
[321100906,1711894288968,-1044.86,0.00060547,120]
[321100907,1711894288977,-500.86,0.00060547,120]
[321100908,1711894288986,-5640.51,0.00060547,120]
[321100909,1711894288996,-1892.16,0.00060547,120]
[321100910,1711894289005,-517.98,0.00060547,120]
[321100911,1711894289014,-642.68,0.00060547,120]
[321100912,1711894289025,-506.29,0.00060547,120]
[321100913,1711894289034,-2259.45,0.00060547,120]
[321100914,1711894289043,-908.46,0.00060547,120]
[321100915,1711894289052,-639.27,0.00060547,120]
[321100916,1711894289061,-1092.83,0.00060547,120]
[321100917,1711894289070,-302.25,0.00060547,120]
[321100918,1711894289079,-2487.04,0.00060547,120]
[321100919,1711894289088,-1781.98,0.00060547,120]
[321100920,1711894289098,-1175.87,0.00060547,120]
[321100921,1711894289107,-1336.92,0.00060547,120]
[321100922,1711894289117,-3011.12,0.00060547,120]
[321100923,1711894289126,-1528.21,0.00060547,120]
[321100924,1711894289135,-544.34,0.00060547,120]
[321100925,1711894289144,-548.05,0.00060547,120]
[321100926,1711894289153,-1338.37,0.00060547,120]
[321100927,1711894289162,-327.84,0.00060547,120]
[321100928,1711894289171,-519.06,0.00060547,120]
[321100929,1711894289180,-1622.59,0.00060547,120]
[321100930,1711894289189,-605.37,0.00060547,120]
[321100931,1711894289198,-2011.39,0.00060547,120]
[321100932,1711894289208,-1383.81,0.00060547,120]
[321100933,1711894289217,-2546.45,0.00060547,120]
[321100934,1711894289226,-1692.34,0.00060547,120]
[321100935,1711894289235,-2361.13,0.00060547,120]
[321100936,1711894289245,-5275.16,0.00060547,120]
[321100937,1711894289254,-1851.82,0.00060547,120]
[321100938,1711894289263,-5572.11,0.00060547,120]
[321100939,1711894289272,-568.01,0.00060547,120]
[321100940,1711894289281,-533.01,0.00060547,120]
[321100941,1711894289291,-2843.98,0.00060547,120]
[321100942,1711894289300,-159.95,0.00060547,120]
[321100943,1711894289309,-526.73,0.00060547,120]
[321100944,1711894289318,-3300.5,0.00060547,120]
[321100945,1711894289327,-1608.2,0.00060547,120]
[321100946,1711894289337,-551.36,0.00060547,120]
[321100947,1711894289346,-1509.08,0.00060547,120]
[321100948,1711894289356,-1066.72,0.00060547,120]
[321100949,1711894289366,-1382.58,0.00060547,120]
[321100950,1711894289375,-500.0,0.00060547,120]
[321100951,1711894289384,-1791.54,0.00060547,120]
[321100952,1711894289394,-500.23,0.00060547,120]
[321100953,1711894289403,-828.12,0.00060547,120]
[321100954,1711894289412,-534.14,0.00060547,120]
[321100955,1711894289421,-7754.49,0.00060547,120]
[321100956,1711894289431,-513.82,0.00060547,120]
[321100957,1711894289440,-2108.77,0.00060547,120]
[321100958,1711894289449,-2518.23,0.00060547,120]
[321100959,1711894289458,-2060.41,0.00060547,120]
[321100960,1711894289468,-260.90286333,0.00060547,120]
[321100961,1711894289477,-500.0,0.00060547,120]
[321100962,1711894289486,-507.06,0.00060547,120]
[321100963,1711894289496,-501.29,0.00060547,120]
[321100964,1711894289505,-9968.34,0.00060547,120]
[321100965,1711894289514,-3471.43,0.00060547,120]
[321100966,1711894289524,-388.68745315,0.00060547,120]
[321100967,1711894289533,-151.0,0.00060575,120]
[321100968,1711894289542,-286.46,0.00060641,2]
[321100969,1711894289552,-13706.18,0.00060795,6]
[321100970,1711894289560,-6920.72862938,0.00060798,2]
[321100971,1711894289569,-664.08,0.00060821,120]
[321100972,1711894289579,-2110.47,0.00060821,120]
[321100973,1711894289589,-9971.6,0.00060821,120]
[321100974,1711894289599,-6781.1,0.00060821,120]
[321100975,1711894289608,-500.0,0.00060821,120]
[321100976,1711894289617,-1467.87,0.00060821,120]
[321100977,1711894289627,-1113.81,0.00060821,120]
[321100978,1711894289637,-11137.41,0.00060821,120]
[321100979,1711894289646,-914.36,0.00060821,120]
[321100980,1711894289655,-786.86,0.00060821,120]
[321100981,1711894289665,-938.23,0.00060821,120]
[321100982,1711894289674,-1333.54,0.00060821,120]
[321100983,1711894289683,-1958.97,0.00060821,21]
[321100984,1711894289692,-1044.86,0.00060821,120]
[321100985,1711894289701,-500.86,0.00060821,120]
[321100986,1711894289711,-5640.51,0.00060821,120]
[321100987,1711894289720,-1892.16,0.00060821,120]
[321100988,1711894289730,-517.98,0.00060821,120]
[321100989,1711894289739,-642.68,0.00060821,120]
[321100990,1711894289749,-506.29,0.00060821,120]
[321100991,1711894289758,-2259.45,0.00060821,120]
[321100992,1711894289768,-908.46,0.00060821,120]
[321100993,1711894289777,-639.27,0.00060821,120]
[321100994,1711894289787,-1092.83,0.00060821,120]
[321100995,1711894289796,-2487.04,0.00060821,120]
[321100996,1711894289806,-1781.98,0.00060821,120]
[321100997,1711894289815,-1175.87,0.00060821,120]
[321100998,1711894289825,-1336.92,0.00060821,120]
[321100999,1711894289835,-3011.12,0.00060821,120]
[321101000,1711894289844,-1528.21,0.00060821,120]
[321101001,1711894289853,-544.34,0.00060821,120]
[321101002,1711894289862,-1338.37,0.00060821,120]
[321101003,1711894289872,-519.06,0.00060821,120]
[321101004,1711894289881,-1622.59,0.00060821,120]
[321101005,1711894289890,-605.37,0.00060821,120]
[321101006,1711894289900,-2011.39,0.00060821,120]
[321101007,1711894289909,-1383.81,0.00060821,120]
[321101008,1711894289919,-2546.45,0.00060821,120]
[321101009,1711894289929,-1692.34,0.00060821,120]
[321101010,1711894289938,-2361.13,0.00060821,120]
[321101011,1711894289947,-5275.16,0.00060821,120]
[321101012,1711894289956,-1851.82,0.00060821,120]
[321101013,1711894289966,-5572.11,0.00060821,120]
[321101014,1711894289975,-568.01,0.00060821,120]
[321101015,1711894289985,-533.01,0.00060821,120]
[321101016,1711894289994,-2843.98,0.00060821,120]
[321101017,1711894290003,-526.73,0.00060821,120]
[321101018,1711894290012,-3300.5,0.00060821,120]
[321101019,1711894290021,-1608.2,0.00060821,120]
[321101020,1711894290031,-551.36,0.00060821,120]
[321101021,1711894290041,-1509.08,0.00060821,120]
[321101022,1711894290050,-1066.72,0.00060821,120]
[321101023,1711894290059,-1382.58,0.00060821,120]
[321101024,1711894290069,-576.21,0.00060821,120]
[321101025,1711894290078,-1791.54,0.00060821,120]
[321101026,1711894290086,-500.23,0.00060821,120]
[321101027,1711894290096,-828.12,0.00060821,120]
[321101028,1711894290105,-534.14,0.00060821,120]
[321101029,1711894290114,-7754.49,0.00060821,120]
[321101030,1711894290123,-513.82,0.00060821,120]
[321101031,1711894290133,-2108.77,0.00060821,120]
[321101032,1711894290142,-2518.23,0.00060821,120]
[321101033,1711894290151,-2060.41,0.00060821,120]
[321101034,1711894290161,-590.69,0.00060821,120]
[321101035,1711894290170,-507.06,0.00060821,120]
[321101036,1711894290179,-501.29,0.00060821,120]
[321101037,1711894290188,-9968.34,0.00060821,120]
[321101038,1711894290197,-3471.43,0.00060821,120]
[321101039,1711894290207,-158.0,0.00061,115]
[321101040,1711894290216,-153.21259,0.00061092,2]
[321101041,1711894290225,-664.24,0.00061095,120]
[321101042,1711894290234,-2110.47,0.00061095,120]
[321101043,1711894290243,-9971.68000001,0.00061095,120]
[321101044,1711894290253,-6781.12814711,0.00061095,120]
[321101045,1711894290262,-187.82847423,0.00061095,120]
[321101046,1711894290272,-1468.1,0.00061095,120]
[321101047,1711894290281,-1113.85,0.00061095,120]
[321101048,1711894290290,-11137.61,0.00061095,120]
[321101049,1711894290299,-914.56,0.00061095,120]
[321101050,1711894290308,-500.0,0.00061095,120]
[321101051,1711894290317,-786.93,0.00061095,120]
[321101052,1711894290326,-938.29,0.00061095,120]
[321101053,1711894290335,-1333.65,0.00061095,120]
[321101054,1711894290347,-1959.08,0.00061095,21]
[321101055,1711894290356,-1044.91,0.00061095,120]
[321101056,1711894290365,-500.86,0.00061095,120]
[321101057,1711894290376,-5640.59,0.00061095,120]
[321101058,1711894290385,-1892.28,0.00061095,120]
[321101059,1711894290395,-518.15,0.00061095,120]
[321101060,1711894290404,-642.89,0.00061095,120]
[321101061,1711894290414,-506.31,0.00061095,120]
[321101062,1711894290424,-2259.64,0.00061095,120]
[321101063,1711894290434,-908.52562623,0.00061095,120]
[321101064,1711894290443,-639.48,0.00061095,120]
[321101065,1711894290452,-1092.98,0.00061095,120]
[321101066,1711894290461,-2487.210001,0.00061095,120]
[321101067,1711894290471,-1782.15,0.00061095,120]
[321101068,1711894290481,-1175.88,0.00061095,120]
[321101069,1711894290490,-1336.96,0.00061095,120]
[321101070,1711894290500,-3011.31,0.00061095,120]
[321101071,1711894290509,-1528.35,0.00061095,120]
[321101072,1711894290519,-544.48986402,0.00061095,120]
[321101073,1711894290528,-1338.5,0.00061095,120]
[321101074,1711894290538,-519.07,0.00061095,120]
[321101075,1711894290548,-1622.7,0.00061095,120]
[321101076,1711894290557,-605.50573167,0.00061095,120]
[321101077,1711894290566,-2011.54,0.00061095,120]
[321101078,1711894290575,-1383.92,0.00061095,120]
[321101079,1711894290584,-2546.52,0.00061095,120]
[321101080,1711894290596,-1692.35903303,0.00061095,120]
[321101081,1711894290605,-2361.31,0.00061095,120]
[321101082,1711894290615,-5275.3,0.00061095,120]
[321101083,1711894290624,-1851.82,0.00061095,120]
[321101084,1711894290634,-5572.14,0.00061095,120]
[321101085,1711894290643,-568.07,0.00061095,120]
[321101086,1711894290653,-533.16,0.00061095,120]
[321101087,1711894290662,-2844.2,0.00061095,120]
[321101088,1711894290672,-526.88,0.00061095,120]
[321101089,1711894290682,-1608.2,0.00061095,120]
[321101090,1711894290691,-3300.53,0.00061095,120]
[321101091,1711894290700,-551.55,0.00061095,120]
[321101092,1711894290710,-1509.1,0.00061095,120]
[321101093,1711894290719,-1066.87,0.00061095,120]
[321101094,1711894290729,-1382.6,0.00061095,120]
[321101095,1711894290738,-1791.63,0.00061095,120]
[321101096,1711894290747,-500.32,0.00061095,120]
[321101097,1711894290757,-828.28,0.00061095,120]
[321101098,1711894290765,-534.34477749,0.00061095,120]
[321101099,1711894290776,-7754.63,0.00061095,120]
[321101100,1711894290785,-513.9,0.00061095,120]
[321101101,1711894290794,-2108.9,0.00061095,120]
[321101102,1711894290803,-2518.41,0.00061095,120]
[321101103,1711894290812,-2060.42640441,0.00061095,120]
[321101104,1711894290821,-507.28,0.00061095,120]
[321101105,1711894290830,-501.46121188,0.00061095,120]
[321101106,1711894290840,-9968.48008235,0.00061095,120]
[321101107,1711894290849,-3471.52,0.00061095,120]
[321101108,1711894290858,-151.0,0.00061315,120]
[321101109,1711894290867,-500.0,0.00061358,27]
[321101110,1711894290876,-158.0,0.000615,116]
[321101111,1711894290885,-999.94,0.0006185,120]
[321101112,1711894290894,-151.0,0.0006197,2]
[321101113,1711894290904,-154.19,0.00062,120]
[321101114,1711894290912,-158.0,0.00062,117]
[321101115,1711894290921,-151.0,0.00062055,120]
[321101116,1711894290931,-151.0,0.00062466,120]
[321101117,1711894290939,-158.0,0.000625,118]
[321101118,1711894290949,-186.12,0.00062649,6]
[321101119,1711894290958,-151.0,0.00062795,120]
[321101120,1711894290967,-962.54440107,0.000629,65]
[321101121,1711894290976,-286.46,0.00062905,2]
[321101122,1711894290985,-158.0,0.00063,119]
[321101123,1711894290994,-302.0,0.00063012,4]
[321101124,1711894291003,-999.94,0.000633,120]
[321101125,1711894291013,-472.0,0.000634,79]
[321101126,1711894291021,-1007.0,0.000635,79]
[321101127,1711894291031,-158.0,0.000635,120]
[321101128,1711894291147,-151.0,0.00063534,120]
[321101129,1711894291156,-961.87,0.0006359,6]
[321101130,1711894291165,-21528.35132554,0.00064,12]
[321101131,1711894291174,-158.0,0.00064,120]
[321101132,1711894291182,-604.0,0.00064071,7]
[321101133,1711894291191,-151.0,0.00064274,120]
[321101134,1711894291200,-7531.86,0.00064385,6]
[321101135,1711894291209,-1000.0,0.000644,30]
[321101136,1711894291218,-158.0,0.000645,120]
[321101137,1711894291227,-1096.067753,0.0006475,120]
[321101138,1711894291237,-17425.61874099,0.000648,60]
[321101139,1711894291246,-567.0,0.000649,30]
[321101140,1711894291255,-151.0,0.00064959,120]
[321101141,1711894291264,-163.08441184,0.00065,120]
[321101142,1711894291274,-200.0,0.00065,120]
[321101143,1711894291283,-168.46,0.00065,30]
[321101144,1711894291292,-158.0,0.00065,120]
[321101145,1711894291301,-151.0,0.00065014,120]
[321101146,1711894291310,-286.46,0.00065169,2]
[321101147,1711894291319,-154.19,0.00065425,120]
[321101148,1711894291328,-158.0,0.000655,120]
[321101149,1711894291337,-599.99999703,0.000657,120]
[321101150,1711894291346,-191.14,0.000657,30]
[321101151,1711894291355,-151.0,0.00065753,120]
[321101152,1711894291364,-150.0,0.00065799,60]
[321101153,1711894291373,-158.0,0.00066,120]
[321101154,1711894291383,-151.0,0.00066493,120]
[321101155,1711894291392,-158.0,0.000665,120]
[321101156,1711894291402,-500.0,0.000666,60]
[321101157,1711894291411,-500.0,0.000666,60]
[321101158,1711894291420,-500.0,0.000666,60]
[321101159,1711894291430,-500.0,0.000666,60]
[321101160,1711894291439,-500.0,0.000666,60]
[321101161,1711894291448,-500.0,0.000666,60]
[321101162,1711894291457,-500.0,0.000666,60]
[321101163,1711894291468,-500.0,0.000666,60]
[321101164,1711894291477,-500.0,0.000666,60]
[321101165,1711894291486,-500.0,0.000666,60]
[321101166,1711894291495,-500.0,0.000666,60]
[321101167,1711894291504,-500.0,0.000666,60]
[321101168,1711894291514,-500.0,0.000666,60]
[321101169,1711894291524,-500.0,0.000666,60]
[321101170,1711894291533,-500.0,0.000666,60]
[321101171,1711894291542,-500.0,0.000666,60]
[321101172,1711894291552,-500.0,0.000666,60]
[321101173,1711894291561,-500.0,0.000666,60]
[321101174,1711894291571,-500.0,0.000666,60]
[321101175,1711894291580,-741.0,0.000666,60]
[321101176,1711894291592,-500.0,0.00066838,120]
[321101177,1711894291602,-158.0,0.00067,120]
[321101178,1711894291611,-151.0,0.00067233,120]
[321101179,1711894291621,-286.46,0.00067432,2]
[321101180,1711894291631,-151.0,0.00067452,120]
[321101181,1711894291640,-158.0,0.000675,120]
[321101182,1711894291650,-151.0,0.00067973,120]
[321101183,1711894291661,-158.0,0.00068,120]
[321101184,1711894291671,-503.61333146,0.00068493,30]
[321101185,1711894291681,-158.0,0.000685,120]
[321101186,1711894291691,-151.0,0.00068712,120]
[321101187,1711894291700,-1121.69,0.00068735,120]
[321101188,1711894291710,-154.19,0.00068849,120]
[321101189,1711894291719,-2421.6,0.00068873,117]
[321101190,1711894291729,-248.11613597,0.000689,14]
[321101191,1711894291739,-158.0,0.00069,120]
[321101192,1711894291748,-151.0,0.00069452,120]
[321101193,1711894291757,-158.0,0.000695,120]
[321101194,1711894291767,-286.46,0.00069696,2]
[321101195,1711894291777,-1405.44300621,0.0006974,30]
[321101196,1711894291787,-283.23,0.00069781,120]
[321101197,1711894291797,-614.02008897,0.0006985,120]
[321101198,1711894291807,-7701.22309859,0.0006987,120]
[321101199,1711894291816,-1000.0,0.000699,30]
[321101200,1711894291826,-151.0,0.00069945,120]
[321101201,1711894291836,-131658.23796172,0.00069995,120]
[321101202,1711894291846,-500.0,0.00069999,120]
[321101203,1711894291856,-26180.63324723,0.0007,120]
[321101204,1711894291866,-1689.68571177,0.0007,120]
[321101205,1711894291876,-79391.0,0.0007,4]
[321101206,1711894291885,-200.0,0.0007,120]
[321101207,1711894291895,-281.2613112,0.0007,120]
[321101208,1711894291905,-1015.0,0.0007,120]
[321101209,1711894291915,-158.0,0.0007,120]
[321101210,1711894291925,-2000.0,0.0007,120]
[321101211,1711894291935,-31418.89759253,0.0007015,2]
[321101212,1711894291944,-151.0,0.00070192,120]
[321101213,1711894291953,-170.00000052,0.000705,120]
[321101214,1711894291962,-151.0,0.00070932,120]
[321101215,1711894291973,-253.69,0.00071,14]
[321101216,1711894291983,-151.0,0.00071671,120]
[321101217,1711894291992,-265.52910568,0.00071781,7]
[321101218,1711894292001,-12262.2588494,0.00071874,20]
[321101219,1711894292010,-962.54440107,0.000719,79]
[321101220,1711894292019,-286.46,0.0007196,2]
[321101221,1711894292029,-1826.17808686,0.00072,120]
[321101222,1711894292038,-254.28077232,0.00072,120]
[321101223,1711894292047,-150.0,0.00072,120]
[321101224,1711894292057,-150.59565821,0.00072,120]
[321101225,1711894292067,-150.0,0.00072,120]
[321101226,1711894292076,-150.33536953,0.00072,120]
[321101227,1711894292086,-150.0,0.00072,120]
[321101228,1711894292095,-150.0,0.00072,120]
[321101229,1711894292104,-150.0,0.00072,120]
[321101230,1711894292113,-150.0,0.00072,120]
[321101231,1711894292122,-291.88482979,0.00072,120]
[321101232,1711894292131,-154.19,0.00072274,120]
[321101233,1711894292141,-500.0,0.00072317,120]
[321101234,1711894292150,-151.0,0.00072411,120]
[321101235,1711894292159,-151.0,0.00072438,120]
[321101236,1711894292168,-253.69,0.000726,14]
[321101237,1711894292177,-500.0,0.0007315,90]
[321101238,1711894292186,-151.0,0.00073151,120]
[321101239,1711894292195,-500.0,0.00073698,90]
[321101240,1711894292204,-151.0,0.0007389,120]
[321101241,1711894292213,-286.46,0.00074224,2]
[321101242,1711894292223,-600.0,0.00074246,90]
[321101243,1711894292233,-500.0,0.0007452,90]
[321101244,1711894292242,-151.0,0.0007463,120]
[321101245,1711894292251,-151.0,0.00074932,120]
[321101246,1711894292260,-200.0,0.00075068,90]
[321101247,1711894292269,-151.0,0.0007537,120]
[321101248,1711894292278,-30000.000009,0.00075569,120]
[321101249,1711894292287,-154.19,0.00075699,120]
[321101250,1711894292296,-151.0,0.0007611,120]
[321101251,1711894292305,-286.46,0.00076488,2]
[321101252,1711894292314,-151.0,0.00076849,120]
[321101253,1711894292322,-168.46,0.000773,30]
[321101254,1711894292332,-151.0,0.00077425,120]
[321101255,1711894292341,-151.0,0.00077589,120]
[321101256,1711894292350,-1000.0,0.00078,2]
[321101257,1711894292360,-151.0,0.00078329,120]
[321101258,1711894292368,-2622.1,0.0007896,117]
[321101259,1711894292377,-191.14,0.00079,30]
[321101260,1711894292386,-151.0,0.00079068,120]
[321101261,1711894292395,-154.19,0.00079123,120]
[321101262,1711894292404,-162.85775373,0.00079199,120]
[321101263,1711894292413,-206.39711,0.000792,120]
[321101264,1711894292423,-206.39712,0.0007922,120]
[321101265,1711894292432,-158.1192664,0.000795,30]
[321101266,1711894292441,-163.47714,0.000795,60]
[321101267,1711894292450,-1130.51730318,0.00079521,120]
[321101268,1711894292460,-225.15712111,0.00079522,120]
[321101269,1711894292469,-287.21084264,0.00079524,120]
[321101270,1711894292478,-14487.28618877,0.00079526,120]
[321101271,1711894292487,-1099.15419155,0.00079533,120]
[321101272,1711894292497,-7384.42647728,0.00079534,120]
[321101273,1711894292506,-70543.683729,0.0007954,120]
[321101274,1711894292515,-1130.51730318,0.00079541,120]
[321101275,1711894292524,-1099.15419155,0.00079542,120]
[321101276,1711894292534,-151.0,0.00079542,30]
[321101277,1711894292543,-151.0,0.00079542,120]
[321101278,1711894292553,-151.0,0.00079542,120]
[321101279,1711894292562,-154.461679,0.00079542,120]
[321101280,1711894292572,-151.0,0.00079542,120]
[321101281,1711894292583,-151.0,0.00079542,120]
[321101282,1711894292593,-151.0,0.00079542,120]
[321101283,1711894292602,-151.0,0.00079542,120]
[321101284,1711894292612,-151.0,0.00079542,120]
[321101285,1711894292622,-70543.683729,0.00079543,120]
[321101286,1711894292632,-14487.28618877,0.00079543,120]
[321101287,1711894292641,-1099.15419155,0.00079544,120]
[321101288,1711894292650,-225.15712111,0.00079545,120]
[321101289,1711894292660,-287.21084264,0.00079546,120]
[321101290,1711894292670,-810.58198258,0.00079548,120]
[321101291,1711894292679,-810.58198258,0.00079548,120]
[321101292,1711894292688,-70543.683729,0.0007955,120]
[321101293,1711894292697,-287.21084264,0.00079551,120]
[321101294,1711894292706,-810.58198258,0.00079554,120]
[321101295,1711894292715,-1130.51730318,0.00079555,120]
[321101296,1711894292724,-14487.28618877,0.00079556,120]
[321101297,1711894292733,-7384.42647728,0.00079558,120]
[321101298,1711894292742,-14487.28618877,0.00079559,120]
[321101299,1711894292752,-3375.36057771,0.0007956,120]
[321101300,1711894292761,-7384.42647728,0.00079561,120]
[321101301,1711894292770,-7384.42647728,0.00079562,120]
[321101302,1711894292779,-225.15712111,0.00079565,120]
[321101303,1711894292789,-1099.15419155,0.00079567,120]
[321101304,1711894292798,-3375.36057771,0.00079568,120]
[321101305,1711894292807,-3375.36057771,0.00079569,120]
[321101306,1711894292816,-151.0,0.00079575,120]
[321101307,1711894292826,-151.0,0.00079575,120]
[321101308,1711894292835,-151.0,0.00079575,120]
[321101309,1711894292845,-151.0,0.00079575,120]
[321101310,1711894292854,-151.0,0.00079575,120]
[321101311,1711894292863,-151.0,0.00079575,120]
[321101312,1711894292872,-1416.118844,0.00079575,120]
[321101313,1711894292882,-151.0,0.00079575,120]
[321101314,1711894292891,-1416.118844,0.00079575,120]
[321101315,1711894292900,-151.0,0.00079575,120]
[321101316,1711894292909,-151.0,0.00079575,120]
[321101317,1711894292919,-151.0,0.00079575,120]
[321101318,1711894292928,-151.0,0.00079575,30]
[321101319,1711894292937,-151.0,0.00079575,120]
[321101320,1711894292946,-154.675146,0.00079575,60]
[321101321,1711894292955,-151.0,0.00079575,120]
[321101322,1711894292965,-182.348349,0.00079575,120]
[321101323,1711894292974,-151.0,0.00079575,120]
[321101324,1711894292983,-151.0,0.00079575,120]
[321101325,1711894292992,-151.0,0.00079575,120]
[321101326,1711894293002,-151.0,0.00079575,120]
[321101327,1711894293011,-151.0,0.00079575,120]
[321101328,1711894293020,-151.0,0.00079575,120]
[321101329,1711894293029,-151.0,0.00079575,120]
[321101330,1711894293038,-151.0,0.00079575,120]
[321101331,1711894293048,-70543.683729,0.00079575,120]
[321101332,1711894293057,-14487.28618877,0.00079578,120]
[321101333,1711894293067,-1099.15419155,0.00079578,120]
[321101334,1711894293076,-225.15712111,0.00079578,120]
[321101335,1711894293085,-287.21084264,0.0007958,120]
[321101336,1711894293095,-3375.36057771,0.00079581,120]
[321101337,1711894293104,-810.58198258,0.00079581,120]
[321101338,1711894293113,-1130.51730318,0.00079583,120]
[321101339,1711894293122,-7384.42647728,0.00079588,120]
[321101340,1711894293131,-810.58198258,0.00079588,120]
[321101341,1711894293142,-1130.51730318,0.00079588,120]
[321101342,1711894293151,-3375.36057771,0.00079592,120]
[321101343,1711894293161,-287.21084264,0.00079593,120]
[321101344,1711894293170,-225.15712111,0.00079595,120]
[321101345,1711894293180,-2000.0,0.000796,14]
[321101346,1711894293189,-1358.15356004,0.00079611,2]
[321101347,1711894293199,-205.59226142,0.00079724,7]
[321101348,1711894293209,-681.8632929,0.00079726,120]
[321101349,1711894293220,-151.28953451,0.00079726,120]
[321101350,1711894293230,-151.28953451,0.00079726,120]
[321101351,1711894293239,-151.28953451,0.00079726,120]
[321101352,1711894293248,-151.28953451,0.00079726,120]
[321101353,1711894293258,-151.28953451,0.00079726,120]
[321101354,1711894293268,-151.28953451,0.00079726,120]
[321101355,1711894293277,-151.28953451,0.00079726,120]
[321101356,1711894293287,-151.28953451,0.00079726,120]
[321101357,1711894293297,-151.28953451,0.00079726,120]
[321101358,1711894293306,-151.28953451,0.00079726,120]
[321101359,1711894293316,-151.28953451,0.00079726,120]
[321101360,1711894293326,-151.28953451,0.00079726,120]
[321101361,1711894293448,-151.28953451,0.00079726,120]
[321101362,1711894293458,-151.28953451,0.00079726,120]
[321101363,1711894293468,-151.28953451,0.00079726,120]
[321101364,1711894293478,-151.28953451,0.00079726,120]
[321101365,1711894293487,-151.28953451,0.00079726,120]
[321101366,1711894293497,-151.28953451,0.00079726,120]
[321101367,1711894293507,-151.78,0.00079726,120]
[321101368,1711894293517,-574.97523113,0.00079726,120]
[321101369,1711894293526,-574.97523113,0.00079726,120]
[321101370,1711894293536,-574.97523113,0.00079726,120]
[321101371,1711894293545,-574.97523113,0.00079726,120]
[321101372,1711894293555,-574.97523113,0.00079726,120]
[321101373,1711894293564,-574.97523113,0.00079726,120]